Workbook

Sheet Toplu Netten Brüte
A1: TC | B1: Adı ve Soyadı | C1: Net Ücret
A3: 1234567890 | B3: ali01 | C3: 9000
A4: 2345678901 | B4: ali02 | C4: 10000
A5: 3456789912 | B5: ali03 | C5: 11000

Sheet Toplu Brütten Nete
A1: TC | B1: Adı ve Soyadı | C1: Brüt Ücret
A3: 1234567890 | B3: ali01 | C3: 12000
A4: 2345678901 | B4: ali02 | C4: 13333
A5: 3456789912 | B5: ali03 | C5: 15000

Sheet Net>Brüt
A1: 2023 | B1: SGK MATRAH | C1: SGK/İŞSİZLİK İŞÇİ (%14+%1) | D1: VERGİ MATRAHI | E1: KÜMÜLATİF GV MATRAH | F1: HESAPLANAN GELİR VERGİSİ | G1: ASGARİ ÜCRET KÜMÜLATİF MATRAH | H1: ASGARİ ÜCRETİN VERGİSİ | I1: İSTİSNA MATRAH | J1: KESİLECEK GELİR VERGİSİ | K1: DAMGA VERGİSİ | L1: NET ÜCRET | M1: SGK İŞVEREN | N1: İŞSİZLİK İŞVEREN | O1: İŞVEREN TOPLAM MALİYET | Q1: Hedef Net Ücret | R1: 6500
A2: ocak | B2: 7200.933376 | C2: =IF(B2<75060,B2*0.15,75060*0.15) -> 1080.140006 | D2: =Tablo234[[#This Row],[SGK MATRAH]]-Tablo234[[#This Row],[SGK/İŞSİZLİK İŞÇİ (%14+%1)]] -> 6120.79337 | E2: =D2 -> 6120.79337 | F2: =gelir_vergisi(Tablo234[[#This Row],[VERGİ MATRAHI]],Tablo234[[#This Row],[KÜMÜLATİF GV MATRAH]]) -> 918.11901 | G2: 8506.8 | H2: 1276.02 | I2: =Tablo234[[#This Row],[ASGARİ ÜCRET KÜMÜLATİF MATRAH]] -> 8506.8 | J2: =Tablo234[[#This Row],[HESAPLANAN GELİR VERGİSİ]]-Tablo234[[#This Row],[ASGARİ ÜCRETİN VERGİSİ]] -> -357.90099 | K2: =(Tablo234[[#This Row],[SGK MATRAH]]-10008)*0.00759 -> -21.30563567 | L2: =Tablo234[[#This Row],[SGK MATRAH]]-Tablo234[[#This Row],[SGK/İŞSİZLİK İŞÇİ (%14+%1)]]-Tablo234[[#This Row],[KESİLECEK GELİR VERGİSİ]]-Tablo234[[#This Row],[DAMGA VERGİSİ]] -> 6499.999995 | M2: =IF(B2<75060,B2*0.155,75060*0.155) -> 1116.144673 | N2: =IF(B2<75060,B2*0.02,75060*0.02) -> 144.0186675 | O2: =B2+M2+N2 -> 8461.096717
A3: şubat | B3: 7200.933376 | C3: 1080.140006 | D3: =Tablo234[[#This Row],[SGK MATRAH]]-Tablo234[[#This Row],[SGK/İŞSİZLİK İŞÇİ (%14+%1)]] -> 6120.79337 | E3: =D3+E2 -> 12241.58674 | F3: =gelir_vergisi(Tablo234[[#This Row],[VERGİ MATRAHI]],Tablo234[[#This Row],[KÜMÜLATİF GV MATRAH]]) -> 918.11901 | G3: =G2+8506.8 -> 17013.6 | H3: 1276.02 | I3: =Tablo234[[#This Row],[ASGARİ ÜCRET KÜMÜLATİF MATRAH]] -> 17013.6 | J3: =Tablo234[[#This Row],[HESAPLANAN GELİR VERGİSİ]]-Tablo234[[#This Row],[ASGARİ ÜCRETİN VERGİSİ]] -> -357.90099 | K3: =(Tablo234[[#This Row],[SGK MATRAH]]-10008)*0.00759 -> -21.30563567 | L3: =Tablo234[[#This Row],[SGK MATRAH]]-Tablo234[[#This Row],[SGK/İŞSİZLİK İŞÇİ (%14+%1)]]-Tablo234[[#This Row],[KESİLECEK GELİR VERGİSİ]]-Tablo234[[#This Row],[DAMGA VERGİSİ]] -> 6499.999995 | M3: 1116.144673 | N3: 144.0186675 | O3: 8461.096717
A4: mart | B4: 7200.933376 | C4: 1080.140006 | D4: =Tablo234[[#This Row],[SGK MATRAH]]-Tablo234[[#This Row],[SGK/İŞSİZLİK İŞÇİ (%14+%1)]] -> 6120.79337 | E4: 18362.38011 | F4: =gelir_vergisi(Tablo234[[#This Row],[VERGİ MATRAHI]],Tablo234[[#This Row],[KÜMÜLATİF GV MATRAH]]) -> 918.11901 | G4: 25520.4 | H4: 1276.02 | I4: =Tablo234[[#This Row],[ASGARİ ÜCRET KÜMÜLATİF MATRAH]] -> 25520.4 | J4: =Tablo234[[#This Row],[HESAPLANAN GELİR VERGİSİ]]-Tablo234[[#This Row],[ASGARİ ÜCRETİN VERGİSİ]] -> -357.90099 | K4: =(Tablo234[[#This Row],[SGK MATRAH]]-10008)*0.00759 -> -21.30563567 | L4: =Tablo234[[#This Row],[SGK MATRAH]]-Tablo234[[#This Row],[SGK/İŞSİZLİK İŞÇİ (%14+%1)]]-Tablo234[[#This Row],[KESİLECEK GELİR VERGİSİ]]-Tablo234[[#This Row],[DAMGA VERGİSİ]] -> 6499.999995 | M4: 1116.144673 | N4: 144.0186675 | O4: 8461.096717
A5: nisan | B5: 7200.933376 | C5: 1080.140006 | D5: =Tablo234[[#This Row],[SGK MATRAH]]-Tablo234[[#This Row],[SGK/İŞSİZLİK İŞÇİ (%14+%1)]] -> 6120.79337 | E5: 24483.17348 | F5: =gelir_vergisi(Tablo234[[#This Row],[VERGİ MATRAHI]],Tablo234[[#This Row],[KÜMÜLATİF GV MATRAH]]) -> 918.11901 | G5: 34027.2 | H5: 1276.02 | I5: =Tablo234[[#This Row],[ASGARİ ÜCRET KÜMÜLATİF MATRAH]] -> 34027.2 | J5: =Tablo234[[#This Row],[HESAPLANAN GELİR VERGİSİ]]-Tablo234[[#This Row],[ASGARİ ÜCRETİN VERGİSİ]] -> -357.90099 | K5: =(Tablo234[[#This Row],[SGK MATRAH]]-10008)*0.00759 -> -21.30563567 | L5: =Tablo234[[#This Row],[SGK MATRAH]]-Tablo234[[#This Row],[SGK/İŞSİZLİK İŞÇİ (%14+%1)]]-Tablo234[[#This Row],[KESİLECEK GELİR VERGİSİ]]-Tablo234[[#This Row],[DAMGA VERGİSİ]] -> 6499.999995 | M5: 1116.144673 | N5: 144.0186675 | O5: 8461.096717
A6: mayıs | B6: 7200.933376 | C6: 1080.140006 | D6: =Tablo234[[#This Row],[SGK MATRAH]]-Tablo234[[#This Row],[SGK/İŞSİZLİK İŞÇİ (%14+%1)]] -> 6120.79337 | E6: 30603.96685 | F6: =gelir_vergisi(Tablo234[[#This Row],[VERGİ MATRAHI]],Tablo234[[#This Row],[KÜMÜLATİF GV MATRAH]]) -> 918.11901 | G6: 42534 | H6: 1276.02 | I6: =Tablo234[[#This Row],[ASGARİ ÜCRET KÜMÜLATİF MATRAH]] -> 42534 | J6: =Tablo234[[#This Row],[HESAPLANAN GELİR VERGİSİ]]-Tablo234[[#This Row],[ASGARİ ÜCRETİN VERGİSİ]] -> -357.90099 | K6: =(Tablo234[[#This Row],[SGK MATRAH]]-10008)*0.00759 -> -21.30563567 | L6: =Tablo234[[#This Row],[SGK MATRAH]]-Tablo234[[#This Row],[SGK/İŞSİZLİK İŞÇİ (%14+%1)]]-Tablo234[[#This Row],[KESİLECEK GELİR VERGİSİ]]-Tablo234[[#This Row],[DAMGA VERGİSİ]] -> 6499.999995 | M6: 1116.144673 | N6: 144.0186675 | O6: 8461.096717
A7: haziran | B7: 7200.933376 | C7: 1080.140006 | D7: =Tablo234[[#This Row],[SGK MATRAH]]-Tablo234[[#This Row],[SGK/İŞSİZLİK İŞÇİ (%14+%1)]] -> 6120.79337 | E7: 36724.76022 | F7: =gelir_vergisi(Tablo234[[#This Row],[VERGİ MATRAHI]],Tablo234[[#This Row],[KÜMÜLATİF GV MATRAH]]) -> 918.11901 | G7: 51040.8 | H7: 1276.02 | I7: =Tablo234[[#This Row],[ASGARİ ÜCRET KÜMÜLATİF MATRAH]] -> 51040.8 | J7: =Tablo234[[#This Row],[HESAPLANAN GELİR VERGİSİ]]-Tablo234[[#This Row],[ASGARİ ÜCRETİN VERGİSİ]] -> -357.90099 | K7: =(Tablo234[[#This Row],[SGK MATRAH]]-10008)*0.00759 -> -21.30563567 | L7: =Tablo234[[#This Row],[SGK MATRAH]]-Tablo234[[#This Row],[SGK/İŞSİZLİK İŞÇİ (%14+%1)]]-Tablo234[[#This Row],[KESİLECEK GELİR VERGİSİ]]-Tablo234[[#This Row],[DAMGA VERGİSİ]] -> 6499.999995 | M7: 1116.144673 | N7: 144.0186675 | O7: 8461.096717
A8: temmuz | B8: 7200.933376 | C8: 1080.140006 | D8: =Tablo234[[#This Row],[SGK MATRAH]]-Tablo234[[#This Row],[SGK/İŞSİZLİK İŞÇİ (%14+%1)]] -> 6120.79337 | E8: 42845.55359 | F8: =gelir_vergisi(Tablo234[[#This Row],[VERGİ MATRAHI]],Tablo234[[#This Row],[KÜMÜLATİF GV MATRAH]]) -> 918.11901 | G8: 59547.6 | H8: 1276.02 | I8: =Tablo234[[#This Row],[ASGARİ ÜCRET KÜMÜLATİF MATRAH]] -> 59547.6 | J8: =Tablo234[[#This Row],[HESAPLANAN GELİR VERGİSİ]]-Tablo234[[#This Row],[ASGARİ ÜCRETİN VERGİSİ]] -> -357.90099 | K8: =(Tablo234[[#This Row],[SGK MATRAH]]-10008)*0.00759 -> -21.30563567 | L8: =Tablo234[[#This Row],[SGK MATRAH]]-Tablo234[[#This Row],[SGK/İŞSİZLİK İŞÇİ (%14+%1)]]-Tablo234[[#This Row],[KESİLECEK GELİR VERGİSİ]]-Tablo234[[#This Row],[DAMGA VERGİSİ]] -> 6499.999995 | M8: 1116.144673 | N8: 144.0186675 | O8: 8461.096717
A9: ağustos | B9: 7200.933376 | C9: 1080.140006 | D9: =Tablo234[[#This Row],[SGK MATRAH]]-Tablo234[[#This Row],[SGK/İŞSİZLİK İŞÇİ (%14+%1)]] -> 6120.79337 | E9: 48966.34696 | F9: =gelir_vergisi(Tablo234[[#This Row],[VERGİ MATRAHI]],Tablo234[[#This Row],[KÜMÜLATİF GV MATRAH]]) -> 918.11901 | G9: 68054.4 | H9: 1276.02 | I9: =Tablo234[[#This Row],[ASGARİ ÜCRET KÜMÜLATİF MATRAH]] -> 68054.4 | J9: =Tablo234[[#This Row],[HESAPLANAN GELİR VERGİSİ]]-Tablo234[[#This Row],[ASGARİ ÜCRETİN VERGİSİ]] -> -357.90099 | K9: =(Tablo234[[#This Row],[SGK MATRAH]]-10008)*0.00759 -> -21.30563567 | L9: =Tablo234[[#This Row],[SGK MATRAH]]-Tablo234[[#This Row],[SGK/İŞSİZLİK İŞÇİ (%14+%1)]]-Tablo234[[#This Row],[KESİLECEK GELİR VERGİSİ]]-Tablo234[[#This Row],[DAMGA VERGİSİ]] -> 6499.999995 | M9: 1116.144673 | N9: 144.0186675 | O9: 8461.096717
A10: eylül | B10: 6742.05044 | C10: 1011.307566 | D10: =Tablo234[[#This Row],[SGK MATRAH]]-Tablo234[[#This Row],[SGK/İŞSİZLİK İŞÇİ (%14+%1)]] -> 5730.742874 | E10: 54697.08983 | F10: =gelir_vergisi(Tablo234[[#This Row],[VERGİ MATRAHI]],Tablo234[[#This Row],[KÜMÜLATİF GV MATRAH]]) -> 859.611435 | G10: 76561.2 | H10: 1604.08 | I10: =Tablo234[[#This Row],[ASGARİ ÜCRET KÜMÜLATİF MATRAH]] -> 76561.2 | J10: =Tablo234[[#This Row],[HESAPLANAN GELİR VERGİSİ]]-Tablo234[[#This Row],[ASGARİ ÜCRETİN VERGİSİ]] -> -744.468565 | K10: =(Tablo234[[#This Row],[SGK MATRAH]]-10008)*0.00759 -> -24.78855716 | L10: =Tablo234[[#This Row],[SGK MATRAH]]-Tablo234[[#This Row],[SGK/İŞSİZLİK İŞÇİ (%14+%1)]]-Tablo234[[#This Row],[KESİLECEK GELİR VERGİSİ]]-Tablo234[[#This Row],[DAMGA VERGİSİ]] -> 6499.999996 | M10: 1045.017818 | N10: 134.8410088 | O10: 7921.909267
A11: ekim | B11: 6605.977368 | C11: 990.8966052 | D11: =Tablo234[[#This Row],[SGK MATRAH]]-Tablo234[[#This Row],[SGK/İŞSİZLİK İŞÇİ (%14+%1)]] -> 5615.080763 | E11: 60312.17059 | F11: =gelir_vergisi(Tablo234[[#This Row],[VERGİ MATRAHI]],Tablo234[[#This Row],[KÜMÜLATİF GV MATRAH]]) -> 842.26212 | G11: 85068 | H11: 1701.36 | I11: =Tablo234[[#This Row],[ASGARİ ÜCRET KÜMÜLATİF MATRAH]] -> 85068 | J11: =Tablo234[[#This Row],[HESAPLANAN GELİR VERGİSİ]]-Tablo234[[#This Row],[ASGARİ ÜCRETİN VERGİSİ]] -> -859.09788 | K11: =(Tablo234[[#This Row],[SGK MATRAH]]-10008)*0.00759 -> -25.82135178 | L11: =Tablo234[[#This Row],[SGK MATRAH]]-Tablo234[[#This Row],[SGK/İŞSİZLİK İŞÇİ (%14+%1)]]-Tablo234[[#This Row],[KESİLECEK GELİR VERGİSİ]]-Tablo234[[#This Row],[DAMGA VERGİSİ]] -> 6499.999994 | M11: 1023.926492 | N11: 132.1195474 | O11: 7762.023407
A12: kasım | B12: 6605.977368 | C12: 990.8966052 | D12: =Tablo234[[#This Row],[SGK MATRAH]]-Tablo234[[#This Row],[SGK/İŞSİZLİK İŞÇİ (%14+%1)]] -> 5615.080763 | E12: 65927.25136 | F12: =gelir_vergisi(Tablo234[[#This Row],[VERGİ MATRAHI]],Tablo234[[#This Row],[KÜMÜLATİF GV MATRAH]]) -> 842.26212 | G12: 93574.8 | H12: 1701.36 | I12: =Tablo234[[#This Row],[ASGARİ ÜCRET KÜMÜLATİF MATRAH]] -> 93574.8 | J12: =Tablo234[[#This Row],[HESAPLANAN GELİR VERGİSİ]]-Tablo234[[#This Row],[ASGARİ ÜCRETİN VERGİSİ]] -> -859.09788 | K12: =(Tablo234[[#This Row],[SGK MATRAH]]-10008)*0.00759 -> -25.82135178 | L12: =Tablo234[[#This Row],[SGK MATRAH]]-Tablo234[[#This Row],[SGK/İŞSİZLİK İŞÇİ (%14+%1)]]-Tablo234[[#This Row],[KESİLECEK GELİR VERGİSİ]]-Tablo234[[#This Row],[DAMGA VERGİSİ]] -> 6499.999994 | M12: 1023.926492 | N12: 132.1195474 | O12: 7762.023407
A13: aralık | B13: 6720.664258 | C13: 1008.099639 | D13: =Tablo234[[#This Row],[SGK MATRAH]]-Tablo234[[#This Row],[SGK/İŞSİZLİK İŞÇİ (%14+%1)]] -> 5712.564619 | E13: 71639.81598 | F13: =gelir_vergisi(Tablo234[[#This Row],[VERGİ MATRAHI]],Tablo234[[#This Row],[KÜMÜLATİF GV MATRAH]]) -> 938.87549 | G13: 102081.6 | H13: 1701.36 | I13: =Tablo234[[#This Row],[ASGARİ ÜCRET KÜMÜLATİF MATRAH]] -> 102081.6 | J13: =Tablo234[[#This Row],[HESAPLANAN GELİR VERGİSİ]]-Tablo234[[#This Row],[ASGARİ ÜCRETİN VERGİSİ]] -> -762.48451 | K13: =(Tablo234[[#This Row],[SGK MATRAH]]-10008)*0.00759 -> -24.95087828 | L13: =Tablo234[[#This Row],[SGK MATRAH]]-Tablo234[[#This Row],[SGK/İŞSİZLİK İŞÇİ (%14+%1)]]-Tablo234[[#This Row],[KESİLECEK GELİR VERGİSİ]]-Tablo234[[#This Row],[DAMGA VERGİSİ]] -> 6500.000007 | M13: 1041.70296 | N13: 134.4132852 | O13: 7896.780503 | Q13: www.vizyonkurumsal.com.tr
A14: TOPLAM | B14: =SUBTOTAL(109,Tablo234[SGK MATRAH]) -> 84282.13644 | C14: =SUBTOTAL(109,Tablo234[SGK/İŞSİZLİK İŞÇİ (%14+%1)]) -> 12642.32047 | D14: =SUBTOTAL(109,Tablo234[VERGİ MATRAHI]) -> 71639.81598 | E14: =SUBTOTAL(109,Tablo234[KÜMÜLATİF GV MATRAH]) -> 472924.8891 | F14: =SUBTOTAL(109,Tablo234[HESAPLANAN GELİR VERGİSİ]) -> 10827.96325 | G14: =SUBTOTAL(109,Tablo234[ASGARİ ÜCRET KÜMÜLATİF MATRAH]) -> 663530.4 | H14: =SUBTOTAL(109,Tablo234[ASGARİ ÜCRETİN VERGİSİ]) -> 16916.32 | I14: =SUBTOTAL(109,Tablo234[İSTİSNA MATRAH]) -> 663530.4 | J14: =SUBTOTAL(109,Tablo234[KESİLECEK GELİR VERGİSİ]) -> -6088.356755 | K14: =SUBTOTAL(109,Tablo234[DAMGA VERGİSİ]) -> -271.8272244 | L14: =SUBTOTAL(109,Tablo234[NET ÜCRET]) -> 77999.99996 | M14: =SUBTOTAL(109,Tablo234[SGK İŞVEREN]) -> 13063.73115 | N14: =SUBTOTAL(109,Tablo234[[İŞSİZLİK İŞVEREN ]]) -> 1685.642729 | O14: =SUBTOTAL(109,Tablo234[İŞVEREN TOPLAM MALİYET]) -> 99031.51032
A15: ort aylık netler | B15: =AVERAGE(Tablo234[SGK MATRAH]) -> 7023.51137 | C15: =AVERAGE(Tablo234[SGK/İŞSİZLİK İŞÇİ (%14+%1)]) -> 1053.526706 | D15: =AVERAGE(Tablo234[VERGİ MATRAHI]) -> 5969.984665 | E15: =AVERAGE(Tablo234[KÜMÜLATİF GV MATRAH]) -> 39410.40742 | F15: =AVERAGE(Tablo234[HESAPLANAN GELİR VERGİSİ]) -> 902.3302704 | G15: =AVERAGE(Tablo234[ASGARİ ÜCRET KÜMÜLATİF MATRAH]) -> 55294.2 | H15: =AVERAGE(Tablo234[ASGARİ ÜCRETİN VERGİSİ]) -> 1409.693333 | I15: =AVERAGE(Tablo234[İSTİSNA MATRAH]) -> 55294.2 | J15: =AVERAGE(Tablo234[KESİLECEK GELİR VERGİSİ]) -> -507.3630629 | K15: =AVERAGE(Tablo234[DAMGA VERGİSİ]) -> -22.6522687 | L15: =AVERAGE(Tablo234[NET ÜCRET]) -> 6499.999996 | M15: =AVERAGE(Tablo234[SGK İŞVEREN]) -> 1088.644262 | N15: =AVERAGE(Tablo234[[İŞSİZLİK İŞVEREN ]]) -> 140.4702274 | O15: =AVERAGE(Tablo234[İŞVEREN TOPLAM MALİYET]) -> 8252.62586
A17: brüt ücret aylık ortalama maliyet | B17: ='brüt>net'!B16 -> 15000 | C17: ='brüt>net'!C16 -> 2250 | D17: ='brüt>net'!D16 -> 12750 | E17: ='brüt>net'!E16 -> 82875 | F17: ='brüt>net'!F16 -> 2275.833333 | G17: ='brüt>net'!G16 -> 55294.2 | H17: ='brüt>net'!H16 -> 1409.693333 | I17: ='brüt>net'!I16 -> 55294.2 | J17: ='brüt>net'!J16 -> 866.14 | K17: ='brüt>net'!K16 -> 37.88928 | L17: ='brüt>net'!L16 -> 11845.97072 | M17: ='brüt>net'!M16 -> 2325 | N17: ='brüt>net'!N16 -> 300 | O17: ='brüt>net'!O16 -> 17625 | Q17: =(O17-O15)*12 -> 112468.4897 | R17: işveren açısından yıllık brüt çalıştırma avantajı

Sheet brüt>net
A1: 2023 | B1: SGK MATRAH | C1: SGK ve İşsizlik İşçi Payı | D1: MATRAH | E1: KÜMÜLATİF GV MATRAH | F1: HESAPLANAN GELİR VERGİSİ | G1: ASGARİ ÜCRET KÜMÜLATİF MATRAH | H1: ASGARİ ÜCRETİN VERGİSİ | I1: İSTİSNA MATRAH | J1: KESİLECEK GELİR VERGİSİ | K1: DAMGA VERGİSİ | L1: NET ÜCRET | M1: SGK İŞVEREN | N1: İŞVEREN İŞSİZLİK | O1: İŞVEREN TOPLAM MALİYET
A2: ocak | B2: 15000 | C2: =IF(B2<75060,B2*0.15,75060*0.15) -> 2250 | D2: =Tablo2345[[#This Row],[SGK MATRAH]]-Tablo2345[[#This Row],[SGK ve İşsizlik İşçi Payı]] -> 12750 | E2: =D2 -> 12750 | F2: =gelir_vergisi(Tablo2345[[#This Row],[MATRAH]],Tablo2345[[#This Row],[KÜMÜLATİF GV MATRAH]]) -> 1912.5 | G2: 8506.8 | H2: 1276.02 | I2: =Tablo2345[[#This Row],[ASGARİ ÜCRET KÜMÜLATİF MATRAH]] -> 8506.8 | J2: =Tablo2345[[#This Row],[HESAPLANAN GELİR VERGİSİ]]-Tablo2345[[#This Row],[ASGARİ ÜCRETİN VERGİSİ]] -> 636.48 | K2: =(Tablo2345[[#This Row],[SGK MATRAH]]-10008)*0.00759 -> 37.88928 | L2: =Tablo2345[[#This Row],[SGK MATRAH]]-Tablo2345[[#This Row],[SGK ve İşsizlik İşçi Payı]]-Tablo2345[[#This Row],[KESİLECEK GELİR VERGİSİ]]-Tablo2345[[#This Row],[DAMGA VERGİSİ]] -> 12075.63072 | M2: =IF(B2<75060,B2*0.155,75060*0.155) -> 2325 | N2: =IF(B2<75060,B2*0.02,75060*0.02) -> 300 | O2: =B2+M2+N2 -> 17625
A3: şubat | B3: 15000 | C3: 2250 | D3: =Tablo2345[[#This Row],[SGK MATRAH]]-Tablo2345[[#This Row],[SGK ve İşsizlik İşçi Payı]] -> 12750 | E3: =D3+E2 -> 25500 | F3: =gelir_vergisi(Tablo2345[[#This Row],[MATRAH]],Tablo2345[[#This Row],[KÜMÜLATİF GV MATRAH]]) -> 1912.5 | G3: =8506.8+G2 -> 17013.6 | H3: 1276.02 | I3: =Tablo2345[[#This Row],[ASGARİ ÜCRET KÜMÜLATİF MATRAH]] -> 17013.6 | J3: =Tablo2345[[#This Row],[HESAPLANAN GELİR VERGİSİ]]-Tablo2345[[#This Row],[ASGARİ ÜCRETİN VERGİSİ]] -> 636.48 | K3: =(Tablo2345[[#This Row],[SGK MATRAH]]-10008)*0.00759 -> 37.88928 | L3: =Tablo2345[[#This Row],[SGK MATRAH]]-Tablo2345[[#This Row],[SGK ve İşsizlik İşçi Payı]]-Tablo2345[[#This Row],[KESİLECEK GELİR VERGİSİ]]-Tablo2345[[#This Row],[DAMGA VERGİSİ]] -> 12075.63072 | M3: 2325 | N3: 300 | O3: 17625
A4: mart | B4: 15000 | C4: 2250 | D4: =Tablo2345[[#This Row],[SGK MATRAH]]-Tablo2345[[#This Row],[SGK ve İşsizlik İşçi Payı]] -> 12750 | E4: 38250 | F4: =gelir_vergisi(Tablo2345[[#This Row],[MATRAH]],Tablo2345[[#This Row],[KÜMÜLATİF GV MATRAH]]) -> 1912.5 | G4: =8506.8+G3 -> 25520.4 | H4: 1276.02 | I4: =Tablo2345[[#This Row],[ASGARİ ÜCRET KÜMÜLATİF MATRAH]] -> 25520.4 | J4: =Tablo2345[[#This Row],[HESAPLANAN GELİR VERGİSİ]]-Tablo2345[[#This Row],[ASGARİ ÜCRETİN VERGİSİ]] -> 636.48 | K4: =(Tablo2345[[#This Row],[SGK MATRAH]]-10008)*0.00759 -> 37.88928 | L4: =Tablo2345[[#This Row],[SGK MATRAH]]-Tablo2345[[#This Row],[SGK ve İşsizlik İşçi Payı]]-Tablo2345[[#This Row],[KESİLECEK GELİR VERGİSİ]]-Tablo2345[[#This Row],[DAMGA VERGİSİ]] -> 12075.63072 | M4: 2325 | N4: 300 | O4: 17625
A5: nisan | B5: 15000 | C5: 2250 | D5: =Tablo2345[[#This Row],[SGK MATRAH]]-Tablo2345[[#This Row],[SGK ve İşsizlik İşçi Payı]] -> 12750 | E5: 51000 | F5: =gelir_vergisi(Tablo2345[[#This Row],[MATRAH]],Tablo2345[[#This Row],[KÜMÜLATİF GV MATRAH]]) -> 1912.5 | G5: 34027.2 | H5: 1276.02 | I5: =Tablo2345[[#This Row],[ASGARİ ÜCRET KÜMÜLATİF MATRAH]] -> 34027.2 | J5: =Tablo2345[[#This Row],[HESAPLANAN GELİR VERGİSİ]]-Tablo2345[[#This Row],[ASGARİ ÜCRETİN VERGİSİ]] -> 636.48 | K5: =(Tablo2345[[#This Row],[SGK MATRAH]]-10008)*0.00759 -> 37.88928 | L5: =Tablo2345[[#This Row],[SGK MATRAH]]-Tablo2345[[#This Row],[SGK ve İşsizlik İşçi Payı]]-Tablo2345[[#This Row],[KESİLECEK GELİR VERGİSİ]]-Tablo2345[[#This Row],[DAMGA VERGİSİ]] -> 12075.63072 | M5: 2325 | N5: 300 | O5: 17625
A6: mayıs | B6: 15000 | C6: 2250 | D6: =Tablo2345[[#This Row],[SGK MATRAH]]-Tablo2345[[#This Row],[SGK ve İşsizlik İşçi Payı]] -> 12750 | E6: 63750 | F6: =gelir_vergisi(Tablo2345[[#This Row],[MATRAH]],Tablo2345[[#This Row],[KÜMÜLATİF GV MATRAH]]) -> 1912.5 | G6: 42534 | H6: 1276.02 | I6: =Tablo2345[[#This Row],[ASGARİ ÜCRET KÜMÜLATİF MATRAH]] -> 42534 | J6: =Tablo2345[[#This Row],[HESAPLANAN GELİR VERGİSİ]]-Tablo2345[[#This Row],[ASGARİ ÜCRETİN VERGİSİ]] -> 636.48 | K6: =(Tablo2345[[#This Row],[SGK MATRAH]]-10008)*0.00759 -> 37.88928 | L6: =Tablo2345[[#This Row],[SGK MATRAH]]-Tablo2345[[#This Row],[SGK ve İşsizlik İşçi Payı]]-Tablo2345[[#This Row],[KESİLECEK GELİR VERGİSİ]]-Tablo2345[[#This Row],[DAMGA VERGİSİ]] -> 12075.63072 | M6: 2325 | N6: 300 | O6: 17625
A7: haziran | B7: 15000 | C7: 2250 | D7: =Tablo2345[[#This Row],[SGK MATRAH]]-Tablo2345[[#This Row],[SGK ve İşsizlik İşçi Payı]] -> 12750 | E7: 76500 | F7: =gelir_vergisi(Tablo2345[[#This Row],[MATRAH]],Tablo2345[[#This Row],[KÜMÜLATİF GV MATRAH]]) -> 2237.5 | G7: 51040.8 | H7: 1276.02 | I7: =Tablo2345[[#This Row],[ASGARİ ÜCRET KÜMÜLATİF MATRAH]] -> 51040.8 | J7: =Tablo2345[[#This Row],[HESAPLANAN GELİR VERGİSİ]]-Tablo2345[[#This Row],[ASGARİ ÜCRETİN VERGİSİ]] -> 961.48 | K7: =(Tablo2345[[#This Row],[SGK MATRAH]]-10008)*0.00759 -> 37.88928 | L7: =Tablo2345[[#This Row],[SGK MATRAH]]-Tablo2345[[#This Row],[SGK ve İşsizlik İşçi Payı]]-Tablo2345[[#This Row],[KESİLECEK GELİR VERGİSİ]]-Tablo2345[[#This Row],[DAMGA VERGİSİ]] -> 11750.63072 | M7: 2325 | N7: 300 | O7: 17625
A8: temmuz | B8: 15000 | C8: 2250 | D8: =Tablo2345[[#This Row],[SGK MATRAH]]-Tablo2345[[#This Row],[SGK ve İşsizlik İşçi Payı]] -> 12750 | E8: 89250 | F8: =gelir_vergisi(Tablo2345[[#This Row],[MATRAH]],Tablo2345[[#This Row],[KÜMÜLATİF GV MATRAH]]) -> 2550 | G8: 59547.6 | H8: 1276.02 | I8: =Tablo2345[[#This Row],[ASGARİ ÜCRET KÜMÜLATİF MATRAH]] -> 59547.6 | J8: =Tablo2345[[#This Row],[HESAPLANAN GELİR VERGİSİ]]-Tablo2345[[#This Row],[ASGARİ ÜCRETİN VERGİSİ]] -> 1273.98 | K8: =(Tablo2345[[#This Row],[SGK MATRAH]]-10008)*0.00759 -> 37.88928 | L8: =Tablo2345[[#This Row],[SGK MATRAH]]-Tablo2345[[#This Row],[SGK ve İşsizlik İşçi Payı]]-Tablo2345[[#This Row],[KESİLECEK GELİR VERGİSİ]]-Tablo2345[[#This Row],[DAMGA VERGİSİ]] -> 11438.13072 | M8: 2325 | N8: 300 | O8: 17625
A9: ağustos | B9: 15000 | C9: 2250 | D9: =Tablo2345[[#This Row],[SGK MATRAH]]-Tablo2345[[#This Row],[SGK ve İşsizlik İşçi Payı]] -> 12750 | E9: 102000 | F9: =gelir_vergisi(Tablo2345[[#This Row],[MATRAH]],Tablo2345[[#This Row],[KÜMÜLATİF GV MATRAH]]) -> 2550 | G9: 68054.4 | H9: 1276.02 | I9: =Tablo2345[[#This Row],[ASGARİ ÜCRET KÜMÜLATİF MATRAH]] -> 68054.4 | J9: =Tablo2345[[#This Row],[HESAPLANAN GELİR VERGİSİ]]-Tablo2345[[#This Row],[ASGARİ ÜCRETİN VERGİSİ]] -> 1273.98 | K9: =(Tablo2345[[#This Row],[SGK MATRAH]]-10008)*0.00759 -> 37.88928 | L9: =Tablo2345[[#This Row],[SGK MATRAH]]-Tablo2345[[#This Row],[SGK ve İşsizlik İşçi Payı]]-Tablo2345[[#This Row],[KESİLECEK GELİR VERGİSİ]]-Tablo2345[[#This Row],[DAMGA VERGİSİ]] -> 11438.13072 | M9: 2325 | N9: 300 | O9: 17625
A10: eylül | B10: 15000 | C10: 2250 | D10: =Tablo2345[[#This Row],[SGK MATRAH]]-Tablo2345[[#This Row],[SGK ve İşsizlik İşçi Payı]] -> 12750 | E10: 114750 | F10: =gelir_vergisi(Tablo2345[[#This Row],[MATRAH]],Tablo2345[[#This Row],[KÜMÜLATİF GV MATRAH]]) -> 2550 | G10: 76561.2 | H10: 1604.08 | I10: =Tablo2345[[#This Row],[ASGARİ ÜCRET KÜMÜLATİF MATRAH]] -> 76561.2 | J10: =Tablo2345[[#This Row],[HESAPLANAN GELİR VERGİSİ]]-Tablo2345[[#This Row],[ASGARİ ÜCRETİN VERGİSİ]] -> 945.92 | K10: =(Tablo2345[[#This Row],[SGK MATRAH]]-10008)*0.00759 -> 37.88928 | L10: =Tablo2345[[#This Row],[SGK MATRAH]]-Tablo2345[[#This Row],[SGK ve İşsizlik İşçi Payı]]-Tablo2345[[#This Row],[KESİLECEK GELİR VERGİSİ]]-Tablo2345[[#This Row],[DAMGA VERGİSİ]] -> 11766.19072 | M10: 2325 | N10: 300 | O10: 17625
A11: ekim | B11: 15000 | C11: 2250 | D11: =Tablo2345[[#This Row],[SGK MATRAH]]-Tablo2345[[#This Row],[SGK ve İşsizlik İşçi Payı]] -> 12750 | E11: 127500 | F11: =gelir_vergisi(Tablo2345[[#This Row],[MATRAH]],Tablo2345[[#This Row],[KÜMÜLATİF GV MATRAH]]) -> 2550 | G11: 85068 | H11: 1701.36 | I11: =Tablo2345[[#This Row],[ASGARİ ÜCRET KÜMÜLATİF MATRAH]] -> 85068 | J11: =Tablo2345[[#This Row],[HESAPLANAN GELİR VERGİSİ]]-Tablo2345[[#This Row],[ASGARİ ÜCRETİN VERGİSİ]] -> 848.64 | K11: =(Tablo2345[[#This Row],[SGK MATRAH]]-10008)*0.00759 -> 37.88928 | L11: =Tablo2345[[#This Row],[SGK MATRAH]]-Tablo2345[[#This Row],[SGK ve İşsizlik İşçi Payı]]-Tablo2345[[#This Row],[KESİLECEK GELİR VERGİSİ]]-Tablo2345[[#This Row],[DAMGA VERGİSİ]] -> 11863.47072 | M11: 2325 | N11: 300 | O11: 17625
A12: kasım | B12: 15000 | C12: 2250 | D12: =Tablo2345[[#This Row],[SGK MATRAH]]-Tablo2345[[#This Row],[SGK ve İşsizlik İşçi Payı]] -> 12750 | E12: 140250 | F12: =gelir_vergisi(Tablo2345[[#This Row],[MATRAH]],Tablo2345[[#This Row],[KÜMÜLATİF GV MATRAH]]) -> 2550 | G12: 93574.8 | H12: 1701.36 | I12: =Tablo2345[[#This Row],[ASGARİ ÜCRET KÜMÜLATİF MATRAH]] -> 93574.8 | J12: =Tablo2345[[#This Row],[HESAPLANAN GELİR VERGİSİ]]-Tablo2345[[#This Row],[ASGARİ ÜCRETİN VERGİSİ]] -> 848.64 | K12: =(Tablo2345[[#This Row],[SGK MATRAH]]-10008)*0.00759 -> 37.88928 | L12: =Tablo2345[[#This Row],[SGK MATRAH]]-Tablo2345[[#This Row],[SGK ve İşsizlik İşçi Payı]]-Tablo2345[[#This Row],[KESİLECEK GELİR VERGİSİ]]-Tablo2345[[#This Row],[DAMGA VERGİSİ]] -> 11863.47072 | M12: 2325 | N12: 300 | O12: 17625
A13: aralık | B13: 15000 | C13: 2250 | D13: =Tablo2345[[#This Row],[SGK MATRAH]]-Tablo2345[[#This Row],[SGK ve İşsizlik İşçi Payı]] -> 12750 | E13: 153000 | F13: =gelir_vergisi(Tablo2345[[#This Row],[MATRAH]],Tablo2345[[#This Row],[KÜMÜLATİF GV MATRAH]]) -> 2760 | G13: 102081.6 | H13: 1701.36 | I13: =Tablo2345[[#This Row],[ASGARİ ÜCRET KÜMÜLATİF MATRAH]] -> 102081.6 | J13: =Tablo2345[[#This Row],[HESAPLANAN GELİR VERGİSİ]]-Tablo2345[[#This Row],[ASGARİ ÜCRETİN VERGİSİ]] -> 1058.64 | K13: =(Tablo2345[[#This Row],[SGK MATRAH]]-10008)*0.00759 -> 37.88928 | L13: =Tablo2345[[#This Row],[SGK MATRAH]]-Tablo2345[[#This Row],[SGK ve İşsizlik İşçi Payı]]-Tablo2345[[#This Row],[KESİLECEK GELİR VERGİSİ]]-Tablo2345[[#This Row],[DAMGA VERGİSİ]] -> 11653.47072 | M13: 2325 | N13: 300 | O13: 17625 | Q13: www.vizyonkurumsal.com.tr
A14: toplam | B14: =SUBTOTAL(109,Tablo2345[SGK MATRAH]) -> 180000 | C14: =SUBTOTAL(109,Tablo2345[SGK ve İşsizlik İşçi Payı]) -> 27000 | D14: =SUBTOTAL(109,Tablo2345[MATRAH]) -> 153000 | E14: =SUBTOTAL(109,Tablo2345[KÜMÜLATİF GV MATRAH]) -> 994500 | F14: =SUBTOTAL(109,Tablo2345[HESAPLANAN GELİR VERGİSİ]) -> 27310 | G14: =SUBTOTAL(109,Tablo2345[ASGARİ ÜCRET KÜMÜLATİF MATRAH]) -> 663530.4 | H14: =SUBTOTAL(109,Tablo2345[ASGARİ ÜCRETİN VERGİSİ]) -> 16916.32 | I14: =SUBTOTAL(109,Tablo2345[İSTİSNA MATRAH]) -> 663530.4 | J14: =SUBTOTAL(109,Tablo2345[KESİLECEK GELİR VERGİSİ]) -> 10393.68 | K14: =SUBTOTAL(109,Tablo2345[DAMGA VERGİSİ]) -> 454.67136 | L14: =SUBTOTAL(109,Tablo2345[NET ÜCRET]) -> 142151.6486 | M14: =SUBTOTAL(109,Tablo2345[SGK İŞVEREN]) -> 27900 | N14: =SUBTOTAL(109,Tablo2345[İŞVEREN İŞSİZLİK]) -> 3600 | O14: =SUBTOTAL(109,Tablo2345[İŞVEREN TOPLAM MALİYET]) -> 211500
O15: =AVERAGE(Tablo2345[İŞVEREN TOPLAM MALİYET]) -> 17625
A16: net ücret aylık ort. maliyet | B16: =Tablo2345[[#Totals],[SGK MATRAH]]/12 -> 15000 | C16: =Tablo2345[[#Totals],[SGK ve İşsizlik İşçi Payı]]/12 -> 2250 | D16: =Tablo2345[[#Totals],[MATRAH]]/12 -> 12750 | E16: =Tablo2345[[#Totals],[KÜMÜLATİF GV MATRAH]]/12 -> 82875 | F16: =Tablo2345[[#Totals],[HESAPLANAN GELİR VERGİSİ]]/12 -> 2275.833333 | G16: =Tablo2345[[#Totals],[ASGARİ ÜCRET KÜMÜLATİF MATRAH]]/12 -> 55294.2 | H16: =Tablo2345[[#Totals],[ASGARİ ÜCRETİN VERGİSİ]]/12 -> 1409.693333 | I16: =Tablo2345[[#Totals],[İSTİSNA MATRAH]]/12 -> 55294.2 | J16: =Tablo2345[[#Totals],[KESİLECEK GELİR VERGİSİ]]/12 -> 866.14 | K16: =Tablo2345[[#Totals],[DAMGA VERGİSİ]]/12 -> 37.88928 | L16: =Tablo2345[[#Totals],[NET ÜCRET]]/12 -> 11845.97072 | M16: =Tablo2345[[#Totals],[SGK İŞVEREN]]/12 -> 2325 | N16: =Tablo2345[[#Totals],[İŞVEREN İŞSİZLİK]]/12 -> 300 | O16: =Tablo2345[[#Totals],[İŞVEREN TOPLAM MALİYET]]/12 -> 17625

Sheet asgari ücret parametre
A1: dönem | B1: brüt asgari ücret | C1: sgk işçi payı | D1: işsizlik işçi payı | E1: vergi matarhı | F1: kümülatif gv matrahı | G1: hesaplanan gv | H1: damga vergisi | I1: asgari ücret gv istisnası | J1: asgari ücret damga istisnası | K1: net ücret | L1: sgk işveren payı | M1: işsizlik işveren payı | N1: işveren toplam maliyet
A2: 2023-01-01 | B2: 10008 | C2: =B2*0.14 -> 1401.12 | D2: =B2*0.01 -> 100.08 | E2: =B2-C2-D2 -> 8506.8 | F2: =E2 -> 8506.8 | G2: =gelir_vergisi(Tablo2[[#This Row],[vergi matarhı]],Tablo2[[#This Row],[kümülatif gv matrahı]]) -> 1276.02 | H2: =B2*0.00759 -> 75.96072 | I2: 1276.02 | J2: 75.9 | K2: =Tablo2[[#This Row],[vergi matarhı]] -> 8506.8 | L2: =B2*0.155 -> 1551.24 | M2: =B2*0.02 -> 200.16 | N2: =B2+L2+M2 -> 11759.4
A3: 2023-02-01 | B3: =B2 -> 10008 | C3: =B3*0.14 -> 1401.12 | D3: =B3*0.01 -> 100.08 | E3: =B3-C3-D3 -> 8506.8 | F3: =E3+F2 -> 17013.6 | G3: =gelir_vergisi(Tablo2[[#This Row],[vergi matarhı]],Tablo2[[#This Row],[kümülatif gv matrahı]]) -> 1276.02 | H3: =B3*0.00759 -> 75.96072 | I3: 1276.02 | J3: 75.9 | K3: =Tablo2[[#This Row],[vergi matarhı]] -> 8506.8 | L3: =B3*0.155 -> 1551.24 | M3: =B3*0.02 -> 200.16 | N3: =B3+L3+M3 -> 11759.4
A4: 2023-03-01 | B4: =B3 -> 10008 | C4: 1401.12 | D4: 100.08 | E4: 8506.8 | F4: =E4+F3 -> 25520.4 | G4: =gelir_vergisi(Tablo2[[#This Row],[vergi matarhı]],Tablo2[[#This Row],[kümülatif gv matrahı]]) -> 1276.02 | H4: 75.96072 | I4: 1276.02 | J4: 75.9 | K4: =Tablo2[[#This Row],[vergi matarhı]] -> 8506.8 | L4: 1551.24 | M4: 200.16 | N4: 11759.4
A5: 2023-04-01 | B5: 10008 | C5: 1401.12 | D5: 100.08 | E5: 8506.8 | F5: 34027.2 | G5: =gelir_vergisi(Tablo2[[#This Row],[vergi matarhı]],Tablo2[[#This Row],[kümülatif gv matrahı]]) -> 1276.02 | H5: 75.96072 | I5: 1377.38 | J5: 75.9 | K5: =Tablo2[[#This Row],[vergi matarhı]] -> 8506.8 | L5: 1551.24 | M5: 200.16 | N5: 11759.4
A6: 2023-05-01 | B6: 10008 | C6: 1401.12 | D6: 100.08 | E6: 8506.8 | F6: 42534 | G6: =gelir_vergisi(Tablo2[[#This Row],[vergi matarhı]],Tablo2[[#This Row],[kümülatif gv matrahı]]) -> 1276.02 | H6: 75.96072 | I6: 1701.36 | J6: 75.9 | K6: =Tablo2[[#This Row],[vergi matarhı]] -> 8506.8 | L6: 1551.24 | M6: 200.16 | N6: 11759.4
A7: 2023-06-01 | B7: 10008 | C7: 1401.12 | D7: 100.08 | E7: 8506.8 | F7: 51040.8 | G7: =gelir_vergisi(Tablo2[[#This Row],[vergi matarhı]],Tablo2[[#This Row],[kümülatif gv matrahı]]) -> 1276.02 | H7: 75.96072 | I7: 1701.36 | J7: 75.9 | K7: =Tablo2[[#This Row],[vergi matarhı]] -> 8506.8 | L7: 1551.24 | M7: 200.16 | N7: 11759.4
A8: 2023-07-01 | B8: 10008 | C8: 1401.12 | D8: 100.08 | E8: 8506.8 | F8: 59547.6 | G8: =gelir_vergisi(Tablo2[[#This Row],[vergi matarhı]],Tablo2[[#This Row],[kümülatif gv matrahı]]) -> 1276.02 | H8: 75.96072 | I8: 1701.36 | J8: 75.9 | K8: =Tablo2[[#This Row],[vergi matarhı]] -> 8506.8 | L8: 1551.24 | M8: 200.16 | N8: 11759.4
A9: 2023-08-01 | B9: 10008 | C9: 1401.12 | D9: 100.08 | E9: 8506.8 | F9: 68054.4 | G9: =gelir_vergisi(Tablo2[[#This Row],[vergi matarhı]],Tablo2[[#This Row],[kümülatif gv matrahı]]) -> 1276.02 | H9: 75.96072 | I9: 1701.36 | J9: 75.9 | K9: =Tablo2[[#This Row],[vergi matarhı]] -> 8506.8 | L9: 1551.24 | M9: 200.16 | N9: 11759.4
A10: 2023-09-01 | B10: 10008 | C10: 1401.12 | D10: 100.08 | E10: 8506.8 | F10: 76561.2 | G10: =gelir_vergisi(Tablo2[[#This Row],[vergi matarhı]],Tablo2[[#This Row],[kümülatif gv matrahı]]) -> 1604.08 | H10: 75.96072 | I10: 2160.644 | J10: 75.9 | K10: =Tablo2[[#This Row],[vergi matarhı]] -> 8506.8 | L10: 1551.24 | M10: 200.16 | N10: 11759.4
A11: 2023-10-01 | B11: 10008 | C11: 1401.12 | D11: 100.08 | E11: 8506.8 | F11: 85068 | G11: =gelir_vergisi(Tablo2[[#This Row],[vergi matarhı]],Tablo2[[#This Row],[kümülatif gv matrahı]]) -> 1701.36 | H11: 75.96072 | I11: 2296.836 | J11: 75.9 | K11: =Tablo2[[#This Row],[vergi matarhı]] -> 8506.8 | L11: 1551.24 | M11: 200.16 | N11: 11759.4
A12: 2023-11-01 | B12: 10008 | C12: 1401.12 | D12: 100.08 | E12: 8506.8 | F12: 93574.8 | G12: =gelir_vergisi(Tablo2[[#This Row],[vergi matarhı]],Tablo2[[#This Row],[kümülatif gv matrahı]]) -> 1701.36 | H12: 75.96072 | I12: 2296.836 | J12: 75.9 | K12: =Tablo2[[#This Row],[vergi matarhı]] -> 8506.8 | L12: 1551.24 | M12: 200.16 | N12: 11759.4
A13: 2023-12-01 | B13: 10008 | C13: 1401.12 | D13: 100.08 | E13: 8506.8 | F13: 102081.6 | G13: =gelir_vergisi(Tablo2[[#This Row],[vergi matarhı]],Tablo2[[#This Row],[kümülatif gv matrahı]]) -> 1701.36 | H13: 75.96072 | I13: 2296.836 | J13: 75.9 | K13: =Tablo2[[#This Row],[vergi matarhı]] -> 8506.8 | L13: 1551.24 | M13: 200.16 | N13: 11759.4
A14: toplam | B14: =SUM(B2:B13) -> 120096 | C14: =SUBTOTAL(109,C2:C13) -> 16813.44 | D14: 1200.96 | E14: 102081.6 | F14: 663530.4 | G14: 16916.32 | H14: 911.52864 | I14: =SUBTOTAL(109,I2:I13) -> 21062.032 | J14: 910.8 | K14: 102081.6 | L14: 18614.88 | M14: 2401.92 | N14: 141112.8
A15: aylık ort maliyet | B15: =B14/12 -> 10008 | C15: =C14/12 -> 1401.12 | D15: 100.08 | E15: 8506.8 | F15: 55294.2 | G15: 1409.693333 | H15: 75.96072 | I15: 1755.169333 | J15: 75.9 | K15: 8506.8 | L15: 1551.24 | M15: 200.16 | N15: 11759.4
H17: =F10 -> 76561.2 | I17: 70000 | J17: =(H17-I17)*0.2 -> 1312.24 | K17: =(E10-(H17-I17))*0.15 -> 291.84

Sheet dilimler
K6: 0-32.000 | L6: 0.15
K7: 32.000-70.000 | L7: 0.2
